bitfinex-derivatives/quotes_BTCF0:USTF0_20241214
["timestamp","ask_amount","ask_price","bid_price","bid_amount"]
[1734182613151,0.410366,100860.0,100850.0,0.75739934]
[1734182613454,0.3608,100860.0,100850.0,1.02034673]
[1734182614345,0.3608,100860.0,100850.0,0.92609934]
[1734182614541,0.3608,100860.0,100850.0,0.70782834]
[1734182614743,0.410366,100860.0,100850.0,0.70782834]
[1734182614941,0.410366,100860.0,100850.0,0.75739934]
[1734182616250,0.410366,100860.0,100850.0,0.70782834]
[1734182617650,0.410366,100860.0,100850.0,2.20782834]
[1734182618047,0.50461339,100860.0,100850.0,0.70782834]
[1734182618263,0.65151443,100860.0,100850.0,0.70782834]
[1734182618551,0.50461339,100860.0,100850.0,0.70782834]
[1734182618950,0.55901339,100860.0,100850.0,0.66445]
[1734182619153,0.55901339,100860.0,100850.0,0.70783357]
[1734182619348,0.55901339,100860.0,100850.0,0.66445]
[1734182619349,0.410366,100860.0,100850.0,0.66445]
[1734182619563,0.410366,100860.0,100850.0,0.714021]
[1734182619748,0.410366,100860.0,100850.0,0.75740319]
[1734182619954,0.410366,100860.0,100850.0,0.81130319]
[1734182620157,0.410366,100860.0,100850.0,0.90555058]
[1734182620365,0.410366,100860.0,100850.0,0.81130319]
[1734182620560,0.410366,100860.0,100850.0,0.70783219]
[1734182621056,0.410366,100860.0,100850.0,0.75740319]
[1734182622052,0.410366,100860.0,100850.0,0.70783219]
[1734182623058,0.50461339,100860.0,100850.0,0.70783219]
[1734182626254,0.59886078,100860.0,100850.0,0.66445]
[1734182626565,0.50461339,100860.0,100850.0,0.70783219]
[1734182627461,0.50461339,100860.0,100850.0,0.66445]
[1734182627872,0.50461339,100860.0,100850.0,0.70783748]
[1734182628057,0.74576182,100860.0,100850.0,0.70783748]
[1734182628258,0.65151443,100860.0,100850.0,0.70783748]
[1734182629254,0.50461339,100860.0,100850.0,0.70783748]
[1734182631267,0.51378557,100860.0,100850.0,0.70783748]
[1734182632254,0.41953818,100860.0,100850.0,0.70783748]
[1734182634356,0.41953818,100860.0,100850.0,0.75740848]
[1734182635065,0.410366,100860.0,100850.0,0.75740848]
[1734182635262,0.50461339,100860.0,100850.0,0.70783748]
[1734182635662,0.410366,100860.0,100850.0,0.70783748]
[1734182636065,0.50461339,100860.0,100850.0,0.70783748]
[1734182637770,0.65151443,100860.0,100850.0,0.70783748]
[1734182638463,0.50770104,100860.0,100850.0,0.70783748]
[1734182638665,0.08823416,100870.0,100860.0,0.049566]
[1734182638976,0.13779016,100880.0,100870.0,0.049561]
[1734182639161,0.59283755,100880.0,100870.0,1.79691586]
[1734182639362,0.89885078,100880.0,100860.0,0.29691586]
[1734182639572,0.89885078,100880.0,100850.0,1.01983339]
[1734182639573,0.049566,100860.0,100850.0,0.96136586]
[1734182639868,0.65151443,100860.0,100850.0,0.66445]
[1734182640872,0.50461339,100860.0,100850.0,0.66445]
[1734182641070,0.65151443,100860.0,100850.0,0.66445]
[1734182641375,0.74576182,100860.0,100850.0,0.66445]
[1734182641869,0.65151443,100860.0,100850.0,0.66445]
[1734182642371,0.55726704,100860.0,100850.0,0.66445]
[1734182642583,0.410366,100860.0,100850.0,0.714021]
[1734182642768,0.49856893,100860.0,100850.0,0.714021]
[1734182642968,0.50778593,100860.0,100850.0,0.714021]
[1734182643365,0.45821993,100860.0,100850.0,0.80826839]
[1734182643575,0.44900293,100860.0,100850.0,2.30826839]
[1734182644379,0.49856893,100860.0,100850.0,2.16445]
[1734182644672,0.49856893,100860.0,100850.0,0.66445]
[1734182645277,0.49856551,100860.0,100850.0,0.66445]
[1734182645680,0.410366,100860.0,100850.0,0.66445]
[1734182646276,0.464666,100860.0,100850.0,0.66445]
[1734182646674,0.410366,100860.0,100850.0,0.66445]
[1734182647076,0.49857347,100860.0,100850.0,0.66445]
[1734182647378,0.410366,100860.0,100850.0,0.66445]
[1734182648973,0.50461339,100860.0,100850.0,0.66445]
[1734182649286,0.74576182,100860.0,100850.0,0.66445]
[1734182649470,1.2213234,100860.0,100850.0,0.70783738]
[1734182649676,1.07442236,100860.0,100850.0,0.55907285]
[1734182649968,0.98017497,100860.0,100850.0,0.51568547]
[1734182650170,0.77442236,100860.0,100850.0,0.51568547]
[1734182650377,0.89886078,100860.0,100850.0,0.04633047]
[1734182650580,0.50461339,100860.0,100850.0,0.04633047]
[1734182650771,0.80461339,100860.0,100850.0,0.04633047]
[1734182651284,0.9809236,100860.0,100850.0,0.04633047]
[1734182651475,0.6809236,100860.0,100850.0,0.04633047]
[1734182651675,0.82781834,100860.0,100850.0,0.04633047]
[1734182652276,0.82781834,100860.0,100850.0,0.08971963]
[1734182652784,0.82781834,100860.0,100850.0,0.04633047]
[1734182653384,0.65150813,100860.0,100850.0,0.04633047]
[1734182655178,0.66077442,100860.0,100850.0,0.04633047]
[1734182655781,0.51387968,100860.0,100850.0,0.04633047]
[1734182656281,0.51387968,100860.0,100850.0,0.13928709]
[1734182656282,0.56652703,100860.0,100850.0,0.13928709]
[1734182656484,0.41963229,100860.0,100850.0,0.13928709]
[1734182656680,0.60202008,100860.0,100850.0,0.13928709]
[1734182657281,0.60202008,100860.0,100850.0,0.08971609]
[1734182657878,0.50777269,100860.0,100850.0,0.13928709]
[1734182658083,0.4582089,100860.0,100850.0,0.28723448]
[1734182658385,0.3608,100860.0,100850.0,0.58420699]
[1734182658777,0.08814261,100880.0,100850.0,1.30341787]
[1734182658977,0.41183962,100890.0,100880.0,0.049556]
[1734182659174,0.41183962,100890.0,100880.0,0.09294162]
[1734182659175,0.49851339,100890.0,100880.0,0.09294162]
[1734182659379,0.3608,100890.0,100880.0,0.09294162]
[1734182659584,0.3608,100890.0,100880.0,0.14664162]
[1734182660182,0.410351,100890.0,100880.0,0.14664162]
[1734182661085,0.44896139,100900.0,100880.0,0.24088901]
[1734182661285,0.44896139,100900.0,100890.0,0.103251]
[1734182661587,0.3608,100900.0,100890.0,0.103251]
[1734182661889,0.3608,100900.0,100890.0,0.159551]
[1734182662085,0.3608,100900.0,100890.0,0.29718401]
[1734182662282,0.50459339,100900.0,100890.0,0.04338562]
[1734182662478,0.55969339,100900.0,100890.0,0.04338562]
[1734182662676,0.049551,100890.0,100870.0,0.46518339]
[1734182662885,0.3608,100880.0,100870.0,0.1098]
[1734182663082,0.410356,100880.0,100870.0,0.1098]
[1734182663585,0.3608,100880.0,100870.0,0.159361]
[1734182663890,0.410351,100890.0,100870.0,0.29697777]
[1734182664090,0.3608,100890.0,100880.0,0.049556]
[1734182664282,0.3608,100890.0,100880.0,0.09292538]
[1734182665188,0.3608,100890.0,100880.0,0.049556]
[1734182665590,0.3608,100890.0,100880.0,0.18717021]
[1734182665787,0.410348,100900.0,100880.0,0.54797021]
[1734182665788,0.3608,100900.0,100880.0,0.54797021]
[1734182666087,0.3608,100900.0,100890.0,0.106851]
[1734182666285,0.3608,100900.0,100890.0,0.15021782]
[1734182667490,0.3608,100900.0,100890.0,0.049551]
[1734182667685,0.410346,100900.0,100890.0,0.049551]
[1734182668894,0.3608,100900.0,100890.0,0.049551]
[1734182671692,0.3608,100900.0,100890.0,0.14379839]
[1734182672188,0.3608,100910.0,100900.0,0.049546]
[1734182672388,0.3608,100910.0,100900.0,0.161846]
[1734182672692,0.3608,100910.0,100900.0,0.049546]
[1734182673084,0.410341,100910.0,100900.0,0.049546]
[1734182673487,0.3608,100910.0,100900.0,0.049546]
[1734182673697,0.3608,100910.0,100900.0,0.14379339]
[1734182673891,0.42684448,100920.0,100910.0,0.049541]
[1734182674095,0.36228705,100920.0,100910.0,0.049541]
[1734182674398,0.0005,100930.0,100910.0,0.61878839]
[1734182674591,0.0005,100930.0,100920.0,0.20108339]
[1734182674986,0.0005,100930.0,100920.0,0.56188339]
[1734182675195,0.0092053,100940.0,100920.0,0.56188339]
[1734182675196,0.410323,100950.0,100920.0,0.56188339]
[1734182675595,0.410323,100950.0,100940.0,0.049526]
[1734182675897,0.410323,100950.0,100930.0,0.04953]
[1734182676092,0.0005,100940.0,100930.0,0.04953]
[1734182676395,0.0005,100940.0,100930.0,0.14377739]
[1734182677098,0.3608,100950.0,100930.0,0.14377739]
[1734182677300,0.3608,100950.0,100940.0,0.049526]
[1734182677795,0.410322,100950.0,100940.0,0.049526]
[1734182678189,0.410322,100950.0,100930.0,0.09424739]
[1734182678190,0.049526,100940.0,100930.0,0.04953]
[1734182678391,0.3608,100940.0,100930.0,0.04953]
[1734182678598,0.410823,100950.0,100930.0,0.14377439]
[1734182679098,0.3608,100950.0,100930.0,0.14377739]
[1734182679288,0.410323,100950.0,100930.0,0.14377739]
[1734182679694,0.410323,100950.0,100940.0,0.049526]
[1734182679993,0.3608,100950.0,100940.0,0.049526]
[1734182680200,0.3613,100950.0,100940.0,0.14377339]
[1734182680496,0.0005,100950.0,100940.0,0.50017339]
[1734182680695,0.0005,100950.0,100940.0,0.20017339]
[1734182681307,0.0005,100950.0,100940.0,0.405926]
[1734182681602,0.0005,100950.0,100940.0,0.165926]
[1734182681790,0.0005,100950.0,100940.0,0.105926]
[1734182682190,0.410318,100960.0,100940.0,0.105926]
[1734182682391,0.3608,100950.0,100940.0,0.105926]
[1734182682590,0.410322,100950.0,100930.0,0.049529]
[1734182682796,0.3608,100940.0,100930.0,0.049529]
[1734182683090,0.410322,100950.0,100930.0,0.049529]
[1734182683290,0.410322,100950.0,100940.0,0.049526]
[1734182684199,0.410322,100950.0,100930.0,0.19081986]
[1734182684402,0.410326,100940.0,100930.0,0.04953]
[1734182684992,0.410326,100940.0,100920.0,1.914535]
[1734182685198,0.529026,100940.0,100920.0,1.854535]
[1734182685903,0.529026,100940.0,100920.0,1.854532]
[1734182686499,0.529026,100940.0,100920.0,1.794032]
[1734182686500,0.3608,100930.0,100920.0,1.794032]
[1734182686692,0.410331,100930.0,100920.0,1.6872]
[1734182687196,0.410331,100930.0,100920.0,0.1872]
[1734182687500,0.49849239,100930.0,100920.0,0.1872]
[1734182687708,0.61575297,100930.0,100920.0,0.1872]
[1734182687911,0.049537,100920.0,100910.0,0.049541]
[1734182688108,0.049541,100910.0,100900.0,1.55103122]
[1734182688406,0.526341,100910.0,100900.0,1.50148622]
[1734182688995,0.66763086,100910.0,100900.0,1.50148622]
[1734182689201,0.75579225,100910.0,100900.0,1.5]
[1734182689397,0.87305283,100910.0,100900.0,1.5]
[1734182689998,0.87305283,100910.0,100890.0,9.356e-05]
[1734182690208,0.410346,100900.0,100890.0,9.356e-05]
[1734182690500,0.410346,100900.0,100890.0,1.50009356]
[1734182690707,0.410346,100900.0,100890.0,1.54964456]
[1734182691496,0.410346,100900.0,100890.0,1.50009356]
[1734182692406,0.55163586,100900.0,100890.0,1.50009356]
[1734182692601,0.410346,100900.0,100890.0,1.50009356]
[1734182693307,0.3608,100900.0,100890.0,1.50009356]
[1734182693602,0.410346,100900.0,100890.0,1.54964456]
[1734182694801,0.410346,100900.0,100890.0,1.50009356]
[1734182695507,0.44896139,100900.0,100890.0,1.54964456]
[1734182695697,0.3608,100900.0,100890.0,0.04964456]
[1734182695896,0.3608,100900.0,100890.0,0.22824456]
[1734182696303,0.3608,100900.0,100890.0,1.72824456]
[1734182696505,0.3608,100900.0,100890.0,1.60934456]
[1734182697003,0.3608,100900.0,100890.0,1.54964456]
[1734182699208,0.410346,100900.0,100890.0,1.54964456]
[1734182699407,0.410346,100900.0,100890.0,9.356e-05]
[1734182700108,0.410346,100900.0,100890.0,1.50009356]
[1734182701604,0.59281968,100900.0,100890.0,1.50009356]
[1734182703007,0.49850739,100900.0,100890.0,1.50009356]
[1734182703215,0.410346,100900.0,100890.0,1.50009356]
[1734182703701,0.410346,100900.0,100890.0,1.54964456]
[1734182704612,0.50465829,100900.0,100890.0,1.50009356]
[1734182707403,0.59281968,100900.0,100890.0,9.356e-05]
[1734182708210,0.50465829,100900.0,100890.0,9.356e-05]
[1734182708408,0.59281968,100900.0,100890.0,9.356e-05]
[1734182709408,0.50465829,100900.0,100890.0,9.356e-05]
[1734182709612,0.59281968,100900.0,100890.0,9.356e-05]
[1734182712517,0.71008026,100900.0,100890.0,9.356e-05]
[1734182713617,0.62191887,100900.0,100890.0,9.356e-05]
[1734182716428,0.65155303,100900.0,100890.0,9.356e-05]
[1734182719013,0.82786324,100900.0,100890.0,9.356e-05]
[1734182719420,0.77528079,100900.0,100890.0,9.356e-05]
[1734182719620,0.6809685,100900.0,100890.0,9.356e-05]
[1734182719819,0.6809685,100900.0,100870.0,1.83811152]
[1734182720020,0.9831147,100880.0,100870.0,1.83811152]
[1734182720422,0.9831147,100880.0,100870.0,1.54485995]
[1734182720724,1.13272631,100880.0,100870.0,0.00148688]
[1734182720927,1.13281987,100880.0,100870.0,0.00148688]
[1734182721117,1.00905736,100880.0,100870.0,0.05104788]
[1734182721316,1.0972535,100880.0,100870.0,0.28709945]
[1734182721514,1.0972535,100880.0,100870.0,0.3304741]
[1734182721719,0.9770535,100880.0,100870.0,0.32898722]
[1734182721918,0.4986457,100880.0,100870.0,1.82898722]
[1734182722117,0.36089356,100880.0,100870.0,2.2199071]
[1734182722426,0.56660394,100900.0,100870.0,2.40343133]
[1734182722631,0.56660394,100900.0,100890.0,0.23733156]
[1734182722632,0.71046223,100900.0,100890.0,0.23733156]
[1734182722931,0.59285443,100900.0,100890.0,0.28070621]
[1734182723734,0.61614994,100900.0,100890.0,0.28070621]
[1734182724233,0.49854214,100900.0,100890.0,0.28070621]
[1734182724625,0.61614994,100900.0,100890.0,0.28070621]
[1734182724936,0.49854214,100900.0,100890.0,0.28070621]
[1734182726731,0.71046223,100900.0,100890.0,0.28070621]
[1734182727324,0.71046223,100900.0,100890.0,1.78070621]
[1734182728634,0.71046223,100900.0,100890.0,0.28070621]
[1734182728834,0.61614994,100900.0,100890.0,0.28070621]
[1734182729036,0.5279538,100900.0,100890.0,0.28070621]
[1734182729231,0.61631551,100900.0,100890.0,0.28070621]
[1734182729632,0.61631551,100900.0,100890.0,0.33910621]
[1734182731523,0.44916171,100900.0,100890.0,0.73625931]
[1734182731725,0.44916171,100900.0,100890.0,0.77970872]
[1734182731930,0.3608,100900.0,100890.0,0.54229106]
[1734182732136,0.3608,100900.0,100890.0,0.89767445]
[1734182732528,0.61630651,100920.0,100900.0,0.049546]
[1734182732728,0.61630651,100920.0,100910.0,0.29453461]
[1734182732948,0.61630651,100920.0,100910.0,0.34407561]
[1734182733230,0.44916171,100920.0,100910.0,0.34407561]
[1734182733539,0.44916171,100930.0,100920.0,0.049536]
[1734182733725,0.44916171,100930.0,100920.0,0.39408363]
[1734182733928,0.67648057,100940.0,100930.0,0.049531]
[1734182733929,0.20745626,100940.0,100930.0,0.049531]
[1734182734132,0.45064846,100940.0,100930.0,0.28672]
[1734182734331,0.36228675,100940.0,100930.0,0.28672]
[1734182734639,0.3608,100940.0,100930.0,0.38103229]
[1734182735741,0.3608,100940.0,100930.0,0.14384329]
[1734182736040,0.410323,100950.0,100930.0,0.14384329]
[1734182736340,0.3608,100950.0,100940.0,0.111426]
[1734182736633,0.3608,100950.0,100940.0,0.170226]
[1734182737141,0.410322,100950.0,100940.0,0.170226]
[1734182738230,0.3608,100950.0,100940.0,0.170226]
[1734182740644,0.3608,100950.0,100940.0,0.26453829]
[1734182740934,0.3608,100960.0,100940.0,0.62533829]
[1734182741145,0.3608,100960.0,100950.0,0.20333429]
[1734182741331,0.3608,100960.0,100950.0,0.109022]
[1734182741637,0.3608,100960.0,100950.0,0.20333429]
[1734182743227,0.3613,100970.0,100960.0,0.049517]
[1734182743429,0.3613,100970.0,100960.0,0.14382929]
[1734182744335,0.410812,100970.0,100960.0,1.549517]
[1734182744632,0.410812,100970.0,100960.0,0.049517]
[1734182745030,0.3613,100970.0,100960.0,0.049517]
[1734182745234,0.3608,100970.0,100960.0,0.049517]
[1734182745829,0.3608,100970.0,100960.0,0.14382929]
[1734182746432,0.3608,100970.0,100960.0,0.44382929]
[1734182747036,0.0005,100980.0,100970.0,0.049512]
[1734182747236,0.3608,100990.0,100980.0,0.049507]
[1734182747534,0.3608,100990.0,100980.0,0.112407]
[1734182747839,0.3608,100990.0,100980.0,0.20671929]
[1734182748028,0.6342,101000.0,100980.0,0.112407]
[1734182748231,0.3608,100990.0,100980.0,0.112407]
[1734182749038,0.3608,100990.0,100980.0,0.20671929]
[1734182749242,0.0005,100990.0,100980.0,0.20671929]
[1734182749435,0.0005,100990.0,100980.0,0.112407]
[1734182749636,0.3613,100990.0,100980.0,0.112407]
[1734182749831,0.0005,100990.0,100980.0,0.20671929]
[1734182750541,0.0005,100990.0,100980.0,1.70671929]
[1734182751331,0.510298,101000.0,100990.0,0.049502]
[1734182752336,0.510798,101000.0,100990.0,0.049502]
[1734182752935,0.049502,100990.0,100980.0,1.612406]
[1734182753131,0.410302,100990.0,100980.0,0.049506]
[1734182753933,0.410302,100990.0,100970.0,2.09201]
[1734182754135,0.410307,100980.0,100970.0,1.6227]
[1734182754338,0.049512,100970.0,100960.0,0.00949915]
[1734182754543,0.049517,100960.0,100950.0,0.00012807]
[1734182754738,0.410317,100960.0,100950.0,1.50012807]
[1734182754942,0.3608,100960.0,100950.0,1.54965007]
[1734182755140,0.56302529,100970.0,100950.0,1.54965007]
[1734182755455,0.3608,100960.0,100950.0,1.54965007]
[1734182756347,0.468713,100970.0,100950.0,1.54965007]
[1734182756639,0.3608,100970.0,100960.0,0.049517]
[1734182757042,0.3608,100970.0,100960.0,0.14382929]
[1734182757241,0.536603,100990.0,100980.0,0.049507]
[1734182757435,0.4871,100990.0,100980.0,0.049507]
[1734182758247,0.4871,100990.0,100980.0,0.14381929]
[1734182758841,0.3608,100990.0,100980.0,0.14381929]
[1734182760348,0.3608,100990.0,100980.0,1.549507]
[1734182761146,0.50461429,100990.0,100980.0,1.549507]
[1734182761344,0.3608,100990.0,100980.0,1.549507]
[1734182761643,0.66035971,101000.0,100980.0,1.549507]
[1734182762742,0.66035971,101000.0,100980.0,1.64381929]
[1734182763140,0.66035971,101000.0,100990.0,0.049502]
[1734182763644,0.72846951,101000.0,100990.0,0.049502]
[1734182763850,0.61086171,101000.0,100990.0,0.049502]
[1734182764355,0.72846951,101000.0,100990.0,0.14381429]
[1734182764539,0.18836171,101000.0,100990.0,0.50461429]
[1734182764742,0.1,101000.0,100990.0,0.20241429]
[1734182765452,0.1,101000.0,100990.0,0.50241429]
[1734182765843,0.1,101000.0,100990.0,2.36321429]
[1734182766047,0.1,101000.0,100990.0,2.47802949]
[1734182767153,0.73415082,101030.0,101000.0,0.049497]
[1734182767154,0.26516951,101030.0,101000.0,0.049497]
[1734182767352,0.26516951,101030.0,101020.0,0.049487]
[1734182767545,0.14756171,101030.0,101020.0,0.049487]
[1734182768047,0.14756171,101030.0,101020.0,0.14379929]
[1734182768245,0.73864851,101040.0,101020.0,0.14379929]
[1734182768449,0.6502868,101040.0,101030.0,0.049482]
[1734182768955,0.7382474,101040.0,101030.0,0.049482]
[1734182769250,0.6260684,101040.0,101020.0,0.13575626]
[1734182769549,0.6260684,101040.0,101030.0,0.049482]
[1734182770347,0.6255684,101040.0,101030.0,0.14379429]
[1734182770549,0.5663684,101040.0,101030.0,0.14379429]
[1734182770751,0.0879606,101040.0,101030.0,0.14379429]
[1734182770951,0.2063606,101050.0,101040.0,0.049477]
[1734182771147,0.2063606,101050.0,101040.0,0.14378929]
[1734182771148,0.1184,101050.0,101040.0,0.14378929]
[1734182771459,0.1189,101050.0,101040.0,1.64378929]
[1734182771845,0.0005,101050.0,101040.0,1.64378929]
[1734182772245,0.49971467,101060.0,101050.0,0.049473]
[1734182772246,0.3608,101060.0,101050.0,0.049473]
[1734182772451,0.3608,101060.0,101050.0,0.14378529]
[1734182773743,0.41027,101060.0,101040.0,2.08226929]
[1734182774058,0.41027,101060.0,101040.0,2.13173929]
[1734182774361,0.41077,101060.0,101050.0,0.049473]
[1734182775047,0.41077,101060.0,101040.0,1.910276]
[1734182775243,0.41027,101060.0,101040.0,1.910276]
[1734182775857,0.41027,101060.0,101040.0,2.05406229]
[1734182776258,0.41077,101060.0,101040.0,2.05406229]
[1734182776459,0.41077,101060.0,101040.0,2.00458629]
[1734182776765,0.41077,101060.0,101050.0,0.049473]
[1734182777147,0.3613,101060.0,101050.0,0.14378529]
[1734182777352,0.3608,101060.0,101050.0,0.14378529]
[1734182777855,0.6216246,101070.0,101060.0,0.049468]
[1734182778058,0.533664,101070.0,101060.0,0.049468]
[1734182778361,0.534164,101070.0,101050.0,1.70708329]
[1734182778556,0.534164,101070.0,101050.0,1.549471]
[1734182778557,0.410268,101060.0,101050.0,1.549471]
[1734182778948,0.3608,101060.0,101050.0,1.64378329]
[1734182780251,0.410268,101060.0,101050.0,1.5]
[1734182780451,0.049474,101050.0,101030.0,0.18139121]
[1734182780660,0.410274,101050.0,101030.0,0.18139121]
[1734182780855,0.3608,101040.0,101030.0,0.18139121]
[1734182781057,0.3608,101040.0,101030.0,1.68139121]
[1734182781460,0.3608,101040.0,101030.0,1.7757035]
[1734182781662,0.410274,101050.0,101040.0,0.049477]
[1734182782365,0.410274,101050.0,101030.0,1.7262235]
[1734182782562,0.3608,101040.0,101030.0,1.7757045]
[1734182784059,0.3608,101050.0,101040.0,0.049477]
[1734182784256,0.3608,101050.0,101040.0,0.14378929]
[1734182784658,0.3608,101060.0,101050.0,0.049473]
[1734182784862,0.595264,101070.0,101060.0,0.049468]
[1734182786360,0.4842,101070.0,101060.0,0.049468]
[1734182786555,0.4842,101070.0,101060.0,1.64378029]
[1734182786759,0.4202,101070.0,101060.0,1.64378029]
[1734182787263,0.3608,101070.0,101060.0,1.64378029]
[1734182787665,0.3608,101070.0,101060.0,1.76408029]
[1734182791663,0.4487606,101080.0,101070.0,0.049463]
[1734182791861,0.3608,101080.0,101070.0,0.14377529]
[1734182792057,0.3608,101080.0,101070.0,1.64377529]
[1734182792857,0.2146606,101090.0,101080.0,0.049458]
[1734182793067,0.2146606,101090.0,101080.0,0.14377029]
[1734182793068,0.1267,101090.0,101080.0,0.14377029]
[1734182793574,0.4875,101090.0,101080.0,0.14377029]
[1734182794359,0.3608,101090.0,101080.0,0.14377029]
[1734182794772,0.61004524,101100.0,101090.0,0.049453]
[1734182795066,0.24924524,101100.0,101090.0,0.14376529]
[1734182795368,0.10148464,101100.0,101090.0,0.14376529]
[1734182795569,0.46228464,101100.0,101090.0,0.14376529]
[1734182795765,0.18944524,101100.0,101090.0,0.14376529]
[1734182795965,0.55024524,101100.0,101090.0,0.049453]
[1734182796473,0.55024524,101100.0,101090.0,0.14376529]
[1734182796769,0.59969324,101100.0,101080.0,0.50456829]
[1734182797265,0.5982086,101100.0,101080.0,0.45511229]
[1734182797467,0.5982086,101100.0,101080.0,0.50456829]
[1734182797773,0.4982186,101090.0,101070.0,1.55949447]
[1734182797969,0.535858,101080.0,101070.0,1.5]
[1734182798165,0.71813089,101080.0,101070.0,1.5]
[1734182798367,0.049466,101070.0,101050.0,0.06064256]
[1734182798559,0.3608,101060.0,101050.0,0.06064256]
[1734182798870,0.0879606,101070.0,101060.0,0.049468]
[1734182799082,0.4982236,101070.0,101060.0,0.049468]
[1734182799567,0.59253589,101070.0,101050.0,1.51117156]
[1734182799773,0.50458029,101060.0,101050.0,1.5014841]
[1734182799962,0.56508029,101060.0,101050.0,1.5014841]
[1734182800167,0.77064869,101060.0,101050.0,1.5014841]
[1734182800367,0.68268809,101060.0,101050.0,1.5014841]
[1734182801364,0.67645264,101060.0,101050.0,1.5014841]
[1734182801570,0.67645264,101060.0,101050.0,1.5509571]
[1734182802572,0.77076493,101060.0,101050.0,1.5014841]
[1734182803276,0.68268809,101060.0,101050.0,1.5014841]
[1734182803467,0.77075313,101060.0,101050.0,1.5014841]
[1734182803775,0.68268809,101060.0,101050.0,0.0014841]
[1734182803975,0.82974611,101060.0,101050.0,0.0014841]
[1734182804174,0.049473,101050.0,101040.0,1.549475]
[1734182804366,0.71993693,101050.0,101040.0,1.549475]
[1734182804870,0.83754473,101050.0,101040.0,1.5]
[1734182805172,0.74949309,101050.0,101040.0,1.5]
[1734182805367,0.89655111,101050.0,101040.0,1.5]
[1734182805672,0.049482,101030.0,101020.0,0.04961291]
[1734182805874,0.410282,101030.0,101020.0,0.04961291]
[1734182806172,0.3608,101030.0,101020.0,1.54961291]
[1734182806673,0.49829591,101040.0,101030.0,0.049482]
[1734182806972,0.5926082,101040.0,101020.0,1.50012591]
[1734182807179,0.56949429,101030.0,101020.0,1.50012591]
[1734182807571,0.56949429,101030.0,101020.0,0.00012591]
[1734182807773,0.86949429,101030.0,101020.0,0.00012591]
[1734182808080,0.86949429,101030.0,101020.0,1.50012591]
[1734182808273,1.07512,101030.0,101020.0,1.50012591]
[1734182808481,0.049487,101020.0,101010.0,0.00967933]
[1734182808779,0.55850491,101020.0,101010.0,0.05917133]
[1734182809079,0.56479929,101020.0,101000.0,1.549495]
[1734182809283,0.3608,101010.0,101000.0,1.549995]
[1734182809577,0.36091801,101010.0,101000.0,1.549995]
[1734182810265,0.36091801,101010.0,101000.0,1.549495]
[1734182810574,0.00011801,101010.0,101000.0,1.64380729]
[1734182810777,0.00011801,101010.0,101000.0,1.77250729]
[1734182811379,0.00011801,101010.0,101000.0,1.77300729]
[1734182811879,0.00011801,101010.0,101000.0,1.78273426]
[1734182813268,0.00011801,101010.0,101000.0,1.68792197]
[1734182813874,0.00011801,101010.0,101000.0,2.04872197]
[1734182814077,0.00011801,101010.0,101000.0,0.48382197]
[1734182814482,0.00011801,101010.0,101000.0,1.98382197]
[1734182814678,0.00011801,101010.0,101000.0,1.62302197]
[1734182815372,0.00011801,101010.0,101000.0,1.55922197]
[1734182817372,0.04961001,101010.0,101000.0,1.55922197]
[1734182817582,0.41041001,101010.0,101000.0,1.55922197]
[1734182818291,0.5047223,101010.0,101000.0,1.55922197]
[1734182818579,0.5047223,101010.0,101000.0,1.50972697]
[1734182818775,0.59903459,101010.0,101000.0,0.00972697]
[1734182818977,0.5047223,101010.0,100990.0,0.05]
[1734182819286,0.1284,101000.0,100990.0,1.5495]
[1734182819785,0.538697,101000.0,100990.0,1.5495]
[1734182819975,0.538697,101000.0,100990.0,1.55907385]
[1734182820282,0.4892,101000.0,100990.0,1.55907385]
[1734182820980,0.6331154,101000.0,100990.0,1.55907385]
[1734182821178,0.53880311,101000.0,100990.0,1.55907385]
[1734182821579,0.48930611,101000.0,100990.0,1.55907385]
[1734182821978,0.36090611,101000.0,100990.0,1.65338614]
[1734182822181,0.00010611,101000.0,100990.0,2.01418614]
[1734182822386,0.00010611,101000.0,100990.0,1.65338614]
[1734182822592,0.00010611,101000.0,100990.0,2.01418614]
[1734182823787,0.00010611,101000.0,100990.0,1.65338614]
[1734182824086,0.00010611,101000.0,100990.0,2.01418614]
[1734182824290,0.00010611,101000.0,100990.0,0.51418614]
[1734182824889,0.00010611,101000.0,100990.0,2.01418614]
[1734182825586,0.41040311,101000.0,100990.0,0.05907385]
[1734182825983,0.5047154,101000.0,100990.0,0.00957385]
[1734182826177,0.5664154,101000.0,100980.0,1.672204]
[1734182826385,0.3608,100990.0,100980.0,1.672204]
[1734182826688,0.3608,100990.0,100980.0,1.609404]
[1734182827388,0.410302,100990.0,100980.0,1.50970148]
[1734182827575,0.56671429,100990.0,100980.0,1.50970148]
[1734182827977,0.56671429,100990.0,100980.0,1.6868111]
[1734182828186,0.56683954,100990.0,100980.0,1.6868111]
[1734182828394,0.86683954,100990.0,100980.0,0.1868111]
[1734182828588,0.86683954,100990.0,100980.0,0.00970148]
[1734182828889,0.049507,100980.0,100970.0,0.17710962]
[1734182829186,0.5047452,100980.0,100970.0,0.17710962]
[1734182829390,0.5047452,100980.0,100970.0,1.5]
[1734182829592,0.4552382,100980.0,100960.0,0.52898582]
[1734182829779,0.50462429,100970.0,100960.0,0.2374614]
[1734182830178,0.50462429,100970.0,100960.0,1.51083878]
[1734182830379,0.50462429,100970.0,100960.0,0.1879484]
[1734182830584,0.86692429,100970.0,100960.0,0.01083878]
[1734182830898,0.65470365,100970.0,100960.0,0.01083878]
[1734182831085,0.47273356,100970.0,100960.0,0.2374654]
[1734182831993,0.56792429,100970.0,100960.0,0.01983878]
[1734182832190,0.56802208,100970.0,100960.0,0.01983878]
[1734182832689,0.56792429,100970.0,100960.0,0.01983878]
[1734182832891,0.93412429,100970.0,100960.0,0.01835363]
[1734182833085,0.93524123,100970.0,100960.0,0.01835363]
[1734182833288,0.93522363,100970.0,100960.0,0.01835363]
[1734182833593,0.049517,100960.0,100950.0,0.00010346]
[1734182833793,0.57042929,100960.0,100950.0,0.00010346]
[1734182833994,0.57055422,100960.0,100950.0,0.00010346]
[1734182834192,0.57055422,100960.0,100950.0,0.04962546]
[1734182834488,0.57055422,100960.0,100950.0,0.00010346]
[1734182834689,0.57042929,100960.0,100950.0,0.00010346]
[1734182834997,0.57142929,100960.0,100950.0,0.00910346]
[1734182835193,0.87142929,100960.0,100950.0,0.00910346]
[1734182835694,0.51162929,100960.0,100950.0,0.00910346]
[1734182835897,1.23322929,100960.0,100950.0,0.00910346]